bitfinex/quotes_SOLUSD_20250724
["timestamp","ask_amount","ask_price","bid_price","bid_amount"]
[1753331178769,0.03,189.03,189.02,4.05817722]
[1753331180270,0.03,189.03,189.02,9.34862267]
[1753331181774,0.03,189.03,189.02,3.63817722]
[1753331181975,0.03,189.03,189.01,5.29069629]
[1753331182177,0.03,189.03,189.02,3.63817722]
[1753331182881,0.03,189.03,189.0,88.2]
[1753331183073,0.03,189.03,189.02,4.05817722]
[1753331183673,0.03,189.03,189.02,3.63817722]
[1753331184487,0.74,189.03,189.02,3.63817722]
[1753331184890,0.74,189.03,189.0,88.2]
[1753331185199,0.03,189.03,189.01,3.63817722]
[1753331185496,0.03,189.03,189.02,3.63817722]
[1753331185866,0.03,189.03,189.0,88.2]
[1753331186066,0.03,189.03,189.02,3.63817722]
[1753331186284,0.74,189.03,189.02,3.63817722]
[1753331188078,0.74,189.03,188.98,5.29149966]
[1753331188480,0.71,189.02,189.01,3.63817722]
[1753331188880,0.03,189.03,189.01,3.63817722]
[1753331189078,0.03,189.03,189.02,3.63817722]
[1753331189910,0.03,189.03,189.0,5.29100529]
[1753331190092,37.47404826,189.04,189.02,3.63817722]
[1753331190283,37.47404826,189.04,189.03,3.63817722]
[1753331191489,0.01404826,189.04,189.03,3.63817722]
[1753331191674,0.01404826,189.04,189.03,8.9283428]
[1753331192185,0.01404826,189.04,189.03,9.3483428]
[1753331192568,0.01404826,189.04,189.03,9.87735935]
[1753331192768,0.01404826,189.04,189.03,9.3483428]
[1753331195597,0.01404826,189.04,189.03,97.5483428]
[1753331195899,0.01404826,189.04,189.03,88.2]
[1753331196105,0.01404826,189.04,189.03,91.83817722]
[1753331196390,0.72404826,189.04,189.03,88.2]
[1753331201493,0.72404826,189.04,189.01,3.63817722]
[1753331202777,0.71,189.03,189.01,3.63817722]
[1753331203401,0.71,189.02,188.96,88.2]
[1753331203604,3.63817722,189.0,188.95,3.63817722]
[1753331203892,0.71,188.99,188.95,3.63817722]
[1753331204282,0.71,188.99,188.96,3.63817722]
[1753331204928,0.71,188.99,188.95,5.29222756]
[1753331205204,26.0,189.02,188.98,3.63817722]
[1753331205403,0.71,189.01,188.97,3.63817722]
[1753331205606,0.71,189.0,188.97,3.63817722]
[1753331205902,0.71,188.99,188.94,125.66]
[1753331206211,0.71,188.98,188.96,3.63817722]
[1753331208306,6.00112823,189.0,188.96,3.63817722]
[1753331208484,0.71,188.99,188.96,3.63817722]
[1753331210308,0.52523767,189.01,188.97,3.63817722]
[1753331210492,0.71,189.01,188.97,3.63817722]
[1753331210694,26.0,189.02,188.98,3.63817722]
[1753331210895,32.00047011,189.02,188.98,3.63817722]
[1753331211114,31.29047011,189.02,188.98,3.63817722]
[1753331211423,0.68,189.01,188.97,3.63817722]
[1753331211587,31.81570778,189.02,188.97,3.63817722]
[1753331211788,0.68,189.0,188.97,3.63817722]
[1753331211989,31.97047011,189.02,188.97,3.63817722]
[1753331212302,0.68,189.01,188.97,3.63817722]
[1753331214905,0.68,189.01,188.96,5.35208538]
[1753331215212,0.68,189.01,188.96,5.77208538]
[1753331215514,0.68,189.01,188.97,3.63817722]
[1753331215911,26.68,189.01,188.98,3.63817722]
[1753331216416,26.0,189.01,188.98,3.63817722]
[1753331216718,26.0,189.02,188.99,3.63817722]
[1753331217119,26.0,189.02,189.0,3.63817722]
[1753331219190,0.01404826,189.04,189.01,3.63817722]
[1753331219391,0.01404826,189.04,189.03,3.63817722]
[1753331219793,0.01404826,189.04,189.03,4.05817722]
[1753331220126,0.01404826,189.04,189.03,5.71016558]
[1753331220310,0.01404826,189.04,189.03,9.3483428]
[1753331220625,0.01404826,189.04,189.03,8.9283428]
[1753331220836,0.01404826,189.04,188.96,0.48]
[1753331220837,4.33222548,189.04,188.96,0.48]
[1753331221137,4.33222548,189.04,188.96,0.06]
[1753331221138,3.63817722,189.0,188.96,0.06]
[1753331221496,0.68,189.0,188.97,3.63817722]
[1753331221696,64.14,189.03,188.99,3.63817722]
[1753331221896,0.01404826,189.04,189.01,3.63817722]
[1753331222136,0.68,189.03,189.01,3.63817722]
[1753331222300,4.31817722,189.03,188.98,3.63817722]
[1753331222495,0.68,189.02,188.98,3.63817722]
[1753331222704,0.68,189.02,188.99,3.63817722]
[1753331222900,1.21928593,189.04,189.0,3.63817722]
[1753331223103,1.21928593,189.04,188.96,0.06]
[1753331223104,0.01404826,189.04,189.02,3.63817722]
[1753331223309,0.01404826,189.04,189.01,3.63817722]
[1753331223827,4.17746315,189.04,188.98,0.42]
[1753331224010,3.63817722,189.02,188.97,3.63817722]
[1753331224217,0.68,189.01,188.97,3.63817722]
[1753331224414,0.68,189.0,188.97,3.63817722]
[1753331228031,30.31817722,189.02,188.97,3.63817722]
[1753331228237,0.68,189.01,188.98,3.63817722]
[1753331229631,26.0,189.02,188.99,3.63817722]
[1753331229815,26.0,189.02,189.0,3.63817722]
[1753331230337,26.68,189.02,188.99,3.63817722]
[1753331230538,26.68,189.02,189.0,3.63817722]
[1753331230539,26.0,189.02,189.0,3.63817722]
[1753331231227,26.0,189.02,188.99,3.63817722]
[1753331231426,26.68,189.02,188.99,3.63817722]
[1753331232222,3.63817722,189.0,188.96,88.26]
[1753331232449,0.68,188.99,188.96,0.06]
[1753331233228,0.68,188.98,188.96,0.06]
[1753331233742,0.68,188.97,188.96,0.06]
[1753331235531,5.97184526,188.97,188.96,0.06]
[1753331235848,0.68,188.97,188.96,0.06]
[1753331238028,5.9713538,188.99,188.96,0.06]
[1753331238228,0.68,188.97,188.96,0.06]
[1753331241944,30.31817722,188.97,188.96,0.06]
[1753331242144,30.84341489,188.97,188.96,0.06]
[1753331243058,36.13526015,188.97,188.96,0.06]
[1753331243837,73.57526015,188.97,188.96,0.06]
[1753331244265,73.05002248,188.97,188.96,0.06]
[1753331250844,86.27963564,188.97,188.92,0.06]
[1753331251044,29.63817722,188.93,188.92,0.06]
[1753331251245,67.60341489,188.93,188.92,0.06]
[1753331251446,68.27341489,188.93,188.92,0.06]
[1753331252353,73.56638053,188.93,188.92,0.06]
[1753331253549,8.79705444,188.92,188.91,1e-08]
[1753331253750,14.52547529,188.92,188.91,1e-08]
[1753331254267,26.0,188.89,188.88,0.06]
[1753331254469,72.39226372,188.89,188.78,4.05817722]
[1753331254665,3.63817722,188.84,188.78,4.05817722]
[1753331254844,37.98523767,188.83,188.78,4.05817722]
[1753331255242,38.65523767,188.83,188.78,4.05817722]
[1753331255462,37.46,188.83,188.8,3.63817722]
[1753331255763,37.46,188.83,188.79,3.63817722]
[1753331255960,37.46,188.83,188.76,5.39768164]
[1753331255961,1.19523767,188.82,188.78,3.63817722]
[1753331256163,38.13,188.81,188.77,3.63817722]
[1753331256564,0.67,188.8,188.77,3.63817722]
[1753331256874,37.46,188.81,188.77,3.63817722]
[1753331257051,37.98523767,188.81,188.77,3.63817722]
[1753331257368,38.65523767,188.81,188.77,3.63817722]
[1753331258069,43.9516227,188.81,188.77,3.63817722]
[1753331258249,38.65523767,188.81,188.77,3.63817722]
[1753331258972,26.0,188.85,188.8,3.63817722]
[1753331258973,0.52523767,188.84,188.8,3.63817722]
[1753331259265,63.46,188.84,188.82,3.63817722]
[1753331260455,26.0,188.82,188.81,3.63817722]
[1753331260656,37.46,188.84,188.81,3.63817722]
[1753331260885,26.67,188.86,188.82,3.63817722]
[1753331261185,37.46,188.85,188.82,4.05817722]
[1753331263682,0.67,188.84,188.81,3.63817722]
[1753331264861,37.46,188.85,188.81,3.63817722]
[1753331265177,38.13,188.85,188.81,3.63817722]
[1753331265364,38.13,188.85,188.82,3.63817722]
[1753331265569,37.46,188.85,188.82,3.63817722]
[1753331266277,0.52523767,188.86,188.82,3.63817722]
[1753331266474,38.65523767,188.86,188.82,3.63817722]
[1753331266967,2.76595482,189.03,188.85,3.63817722]
[1753331266968,1.19523767,188.89,188.85,3.63817722]
[1753331267173,0.67,188.88,188.84,3.63817722]
[1753331268088,0.67,188.87,188.84,3.63817722]
[1753331268665,0.67,188.87,188.81,5.71625549]
[1753331268880,0.67,188.87,188.84,3.63817722]
[1753331271370,5.2943837,188.88,188.84,3.63817722]
[1753331271576,6.0143837,188.88,188.84,3.63817722]
[1753331272775,1.24523767,188.87,188.83,3.63817722]
[1753331272971,0.72,188.86,188.83,3.63817722]
[1753331273762,0.72,188.86,188.81,88.62]
[1753331273964,0.72,188.85,188.82,3.63817722]
[1753331276384,0.72,188.84,188.81,88.2]
[1753331276583,0.72,188.83,188.81,88.2]
[1753331276771,0.72,188.82,188.77,131.35742639]
[1753331276968,3.63817722,188.84,188.78,3.63817722]
[1753331277273,47.61918357,188.83,188.78,3.63817722]
[1753331277588,4.35817722,188.82,188.77,91.83817722]
[1753331277882,0.72,188.81,188.77,91.83817722]
[1753331278093,0.72,188.81,188.76,0.52]
[1753331278094,26.72,188.8,188.76,0.1]
[1753331278262,0.72,188.79,188.76,0.1]
[1753331279290,0.72,188.78,188.76,0.1]
[1753331279792,34.93485554,188.8,188.76,0.1]
[1753331279793,35.65485554,188.8,188.76,0.1]
[1753331280091,0.72,188.79,188.76,0.1]
[1753331281186,26.0,188.8,188.76,3.73817722]
[1753331281365,26.52523767,188.8,188.76,3.73817722]
[1753331281565,26.52523767,188.8,188.76,0.1]
[1753331281804,26.52523767,188.8,188.76,3.73817722]
[1753331281961,27.24523767,188.8,188.76,3.73817722]
[1753331282388,64.70523767,188.8,188.76,3.73817722]
[1753331282567,69.28187995,188.8,188.76,3.73817722]
[1753331282766,69.28187995,188.8,188.76,0.1]
[1753331282767,4.35817722,188.79,188.76,0.1]
[1753331282966,3.63817722,188.77,188.76,0.1]
[1753331283181,8.93562914,188.77,188.76,0.1]
[1753331283381,6.01745192,188.77,188.76,0.1]
[1753331283689,9.65562914,188.77,188.76,0.1]
[1753331284865,35.65562914,188.77,188.76,0.1]
[1753331285270,36.18086681,188.77,188.76,0.1]
[1753331285470,73.64086681,188.77,188.76,0.1]
[1753331286266,27.24523767,188.77,188.76,0.1]
[1753331286472,73.64086681,188.77,188.76,0.1]
[1753331286863,47.64086681,188.77,188.76,0.1]
[1753331289176,26.0,188.74,188.73,0.06]
[1753331289382,67.62341489,188.74,188.73,0.06]
[1753331289781,68.34341489,188.74,188.73,0.06]
[1753331290785,64.70523767,188.74,188.66,3.19817722]
[1753331290978,64.70523767,188.74,188.69,3.63817722]
[1753331290979,37.46,188.73,188.69,3.63817722]
[1753331291185,26.0,188.7,188.69,4.05817722]
[1753331291382,63.46,188.7,188.69,3.63817722]
[1753331291588,63.46,188.7,188.68,3.63817722]
[1753331292381,37.46,188.7,188.69,3.63817722]
[1753331293594,37.46,188.7,188.69,4.05817722]
[1753331293790,26.0,188.74,188.69,5.71969791]
[1753331293985,63.46,188.73,188.7,0.42]
[1753331294298,63.46,188.73,188.72,3.63817722]
[1753331294697,26.0,188.73,188.72,3.63817722]
[1753331295202,26.0,188.72,188.71,3.63817722]
[1753331295875,37.46,188.74,188.71,3.63817722]
[1753331296076,35.65595956,188.76,188.72,3.63817722]
[1753331296077,0.52523767,188.75,188.72,3.63817722]
[1753331296286,37.46,188.74,188.72,3.63817722]
[1753331296489,0.52523767,188.75,188.72,3.63817722]
[1753331296698,37.46,188.75,188.73,3.63817722]
[1753331296984,37.46,188.75,188.74,3.63817722]
[1753331297288,37.46,188.75,188.74,4.05817722]
[1753331297606,1.24523767,188.8,188.74,9.35647116]
[1753331297777,37.46,188.79,188.78,3.63817722]
[1753331298978,37.46,188.79,188.77,3.63817722]
[1753331300190,37.46,188.79,188.75,5.71794795]
[1753331300403,37.46,188.79,188.77,3.63817722]
[1753331300589,1.24523767,188.78,188.74,3.63817722]
[1753331300907,29.63817722,188.76,188.71,3.63817722]
[1753331301205,38.70523767,188.75,188.71,3.63817722]
[1753331301385,0.68,188.74,188.71,3.63817722]
[1753331301582,37.98523767,188.75,188.71,3.63817722]
[1753331301888,0.68,188.74,188.71,3.63817722]
[1753331302892,0.68,188.74,188.69,6.82823425]
[1753331303099,0.68,188.74,188.71,3.63817722]
[1753331303391,37.98523767,188.75,188.7,4.05817722]
[1753331303593,38.66523767,188.75,188.7,0.42]
[1753331303796,42.30341489,188.75,188.7,3.63817722]
[1753331304013,0.68,188.74,188.7,3.63817722]
[1753331305608,37.98523767,188.75,188.7,9.35749631]
[1753331305797,37.98523767,188.75,188.71,3.63817722]
[1753331305995,37.98523767,188.75,188.7,5.29931909]
[1753331305996,0.68,188.74,188.7,5.29931909]
[1753331306197,0.68,188.74,188.71,3.63817722]
[1753331306896,37.44,188.73,188.71,3.63817722]
[1753331307391,0.52523767,188.75,188.71,3.63817722]
[1753331307598,37.44,188.73,188.7,5.29931909]
[1753331307799,37.44,188.73,188.71,3.63817722]
[1753331308890,37.44,188.73,188.72,3.63817722]
[1753331309592,0.68,188.74,188.72,3.63817722]
[1753331309795,37.44,188.73,188.71,3.63817722]
[1753331310596,26.0,188.76,188.71,3.63817722]
[1753331310597,0.68,188.75,188.71,3.63817722]
[1753331310794,0.68,188.74,188.71,3.63817722]
[1753331311091,37.44,188.73,188.71,3.63817722]
[1753331311303,0.68,188.74,188.71,3.63817722]
[1753331311501,37.44,188.73,188.71,3.63817722]
[1753331312007,37.44,188.73,188.7,8.93749631]
[1753331313091,0.5,188.72,188.7,8.93749631]
[1753331316426,0.5,188.72,188.69,8.93787513]
[1753331317111,0.5,188.72,188.69,97.13787513]
[1753331317310,0.5,188.72,188.7,3.63817722]
[1753331317617,37.44,188.73,188.7,3.63817722]
[1753331317825,26.71,188.77,188.72,3.63817722]
[1753331318015,37.44,188.76,188.73,3.63817722]
[1753331318322,37.44,188.76,188.69,106.7489427]
[1753331318323,0.03,188.77,188.75,8.93593928]
[1753331318529,0.03,188.77,188.75,4.05817722]
[1753331318708,0.03,188.77,188.75,3.63817722]
[1753331318918,0.03,188.77,188.74,3.63817722]
[1753331319407,0.71,188.77,188.71,88.62]
[1753331319600,0.68,188.76,188.73,3.63817722]
[1753331320202,0.03,188.77,188.71,88.62]
[1753331320404,4.31817722,188.76,188.71,88.2]
[1753331320605,0.68,188.76,188.73,3.63817722]
[1753331321009,0.68,188.75,188.72,3.63817722]
[1753331321801,38.12,188.74,188.71,88.2]
[1753331322028,0.68,188.73,188.71,88.2]
[1753331322215,3.63817722,188.72,188.67,3.63817722]
[1753331322539,0.68,188.71,188.67,3.63817722]
[1753331322905,0.68,188.71,188.68,3.63817722]
[1753331323411,41.60341489,188.7,188.64,3.63817722]
[1753331323725,38.64523767,188.7,188.66,0.06]
[1753331323920,0.68,188.69,188.66,0.06]
[1753331324107,37.44,188.7,188.67,3.63817722]
[1753331324307,37.44,188.69,188.67,3.63817722]
[1753331324715,26.0,188.71,188.67,3.63817722]
[1753331324919,0.68,188.72,188.69,3.63817722]
[1753331325124,37.44,188.72,188.69,3.63817722]
[1753331325518,0.5,188.71,188.69,3.63817722]
[1753331326027,0.5,188.71,188.68,3.63817722]
[1753331326416,1.18,188.71,188.68,3.63817722]
[1753331326815,0.5,188.71,188.68,3.63817722]
[1753331329333,0.68,188.7,188.66,91.89817722]
[1753331330936,5.79918653,188.71,188.67,3.63817722]
[1753331331121,1.18,188.71,188.67,3.63817722]
[1753331331320,1.18,188.71,188.68,3.63817722]
[1753331331523,0.5,188.71,188.68,3.63817722]
[1753331332620,1.19,188.71,188.68,3.63817722]
[1753331334017,0.69,188.7,188.68,3.63817722]
[1753331334225,0.69,188.7,188.67,3.63817722]
[1753331335039,0.5,188.71,188.67,3.63817722]
[1753331335331,1.19,188.71,188.67,3.63817722]
[1753331335531,0.69,188.7,188.67,3.63817722]
[1753331335734,3.63817722,188.68,188.66,0.06]
[1753331335938,42.27341489,188.67,188.66,0.06]
[1753331336236,38.11,188.67,188.66,0.06]
[1753331336655,37.42,188.67,188.66,0.06]
[1753331336872,41.74817722,188.67,188.66,0.06]
[1753331337153,43.93549738,188.67,188.66,0.06]
[1753331337316,73.5736746,188.67,188.66,0.06]
[1753331337744,26.0,188.64,188.63,0.1]
[1753331337930,30.16341489,188.64,188.63,0.1]
[1753331338243,4.85341489,188.64,188.63,0.1]
[1753331338446,64.63523767,188.64,188.63,0.1]
[1753331338746,68.27341489,188.64,188.63,0.1]
[1753331339156,6.51634029,188.64,188.63,0.1]
[1753331339448,43.41110262,188.64,188.63,0.1]
[1753331339641,47.57451751,188.64,188.63,0.1]
[1753331339954,43.93634029,188.64,188.63,0.1]
[1753331340244,43.97634029,188.64,188.63,0.1]
[1753331340552,73.08927984,188.64,188.63,0.1]
[1753331340847,0.52523767,188.66,188.63,3.73817722]
[1753331341147,37.54,188.66,188.63,3.73817722]
[1753331341347,1.21523767,188.65,188.63,0.1]
[1753331341536,29.63817722,188.64,188.63,0.1]
[1753331341741,30.32817722,188.64,188.63,0.1]
[1753331342833,0.69,188.64,188.63,0.1]
[1753331343051,26.0,188.65,188.63,3.73817722]
[1753331343225,63.56,188.65,188.63,0.1]
[1753331343544,37.56,188.65,188.63,0.1]
[1753331343747,4.32817722,188.7,188.64,3.63817722]
[1753331344050,37.56,188.68,188.66,3.63817722]
[1753331344254,37.56,188.68,188.67,3.63817722]
[1753331344426,0.72,188.75,188.67,4.11817722]
[1753331344635,0.72,188.75,188.67,0.48]
[1753331344636,63.56,188.74,188.67,0.48]
[1753331344954,42.41341489,188.74,188.69,3.63817722]
[1753331345131,41.72341489,188.74,188.69,3.63817722]
[1753331345330,0.69,188.73,188.69,3.63817722]
[1753331346039,0.69,188.72,188.69,3.63817722]
[1753331346247,38.08523767,188.74,188.7,3.63817722]
[1753331346544,0.69,188.73,188.69,3.63817722]
[1753331347647,0.03,188.72,188.7,3.63817722]
[1753331347852,0.03,188.72,188.71,3.63817722]
[1753331348731,0.03,188.72,188.66,0.53005406]
[1753331348732,26.0,188.71,188.66,0.53005406]
[1753331348934,29.63817722,188.67,188.65,0.06]
[1753331349133,47.14395554,188.66,188.65,0.06]
[1753331349332,44.19577832,188.66,188.65,0.06]
[1753331349534,47.83395554,188.66,188.65,0.06]
[1753331350447,47.87395554,188.66,188.65,0.06]
[1753331350758,10.15395554,188.66,188.65,0.06]
[1753331350962,44.23577832,188.66,188.65,0.06]
[1753331351163,47.87395554,188.66,188.65,0.06]
[1753331352165,10.15395554,188.66,188.65,0.06]
[1753331352366,47.87395554,188.66,188.65,0.06]
[1753331352734,44.23577832,188.66,188.65,0.06]
[1753331352957,47.87395554,188.66,188.65,0.06]
[1753331353841,73.87395554,188.66,188.65,0.06]
[1753331354038,38.22523767,188.66,188.65,0.06]
[1753331354644,0.52523767,188.66,188.65,0.06]
[1753331354843,38.22523767,188.66,188.65,0.06]
[1753331355260,0.52523767,188.66,188.65,0.06]
[1753331355468,41.86341489,188.67,188.65,0.06]
[1753331355659,38.22523767,188.67,188.65,0.06]
[1753331355843,42.55341489,188.67,188.65,0.06]
[1753331357661,0.69,188.66,188.65,0.06]
[1753331358039,41.86341489,188.67,188.65,0.06]
[1753331358454,1.19,188.66,188.65,0.06]
[1753331360571,10.12871787,188.66,188.65,0.06]
[1753331365364,6.49054065,188.66,188.65,0.06]
[1753331365543,0.5,188.66,188.65,0.06]
[1753331366955,0.5,188.66,188.65,3.69817722]
[1753331367166,0.5,188.66,188.65,4.17817722]
[1753331369481,0.5,188.66,188.65,9.47899884]
[1753331371856,0.5,188.66,188.65,43.52082162]
[1753331372059,0.5,188.66,188.65,47.15899884]
[1753331373182,0.5,188.66,188.65,135.35899884]
[1753331376053,0.5,188.66,188.65,93.56082162]
[1753331376254,1.16,188.66,188.65,0.06]
[1753331376477,10.09871787,188.66,188.65,0.06]
[1753331380182,1.16,188.66,188.65,0.06]
[1753331380365,27.16,188.66,188.65,0.06]
[1753331381562,30.79817722,188.66,188.65,0.06]
[1753331381762,1.16,188.66,188.65,0.06]
[1753331382082,26.5,188.66,188.65,0.06]
[1753331382485,10.09871787,188.66,188.65,0.06]
[1753331382874,29.63817722,188.64,188.63,0.1]
[1753331383388,30.29817722,188.64,188.63,0.1]
[1753331384488,35.59927984,188.64,188.63,0.1]
[1753331385171,38.2177418,188.64,188.63,0.1]
[1753331385785,1.5767,188.63,188.61,0.06]
[1753331386089,26.0,188.59,188.51,3.63817722]
[1753331386285,26.0,188.59,188.49,7.38510264]
[1753331386286,39.00523767,188.58,188.49,7.38510264]
[1753331386482,0.66,188.57,188.53,3.63817722]
[1753331386801,26.0,188.57,188.53,0.54]
[1753331387091,38.48,188.6,188.56,3.63817722]
[1753331387286,39.00523767,188.6,188.56,3.63817722]
[1753331387688,37.84,188.62,188.56,0.54]
[1753331387989,37.84,188.62,188.57,3.63817722]
[1753331388187,26.0,188.59,188.55,0.06]
[1753331388595,0.66,188.58,188.55,0.06]
[1753331388791,26.0,188.59,188.55,3.69817722]
[1753331389292,26.52523767,188.59,188.55,0.06]
[1753331389490,0.66,188.58,188.55,0.06]
[1753331390290,26.0,188.59,188.55,0.06]
[1753331390595,26.0,188.59,188.55,3.69817722]
[1753331390896,26.0,188.59,188.55,0.6]
[1753331391076,26.0,188.59,188.57,3.63817722]
[1753331391892,3.63817722,188.62,188.55,0.06]
[1753331392089,3.63817722,188.6,188.55,0.06]
[1753331392292,0.7,188.58,188.55,3.69817722]
[1753331392481,9.46550642,188.61,188.56,3.63817722]
[1753331392684,0.7,188.59,188.55,3.69817722]
[1753331392997,0.7,188.59,188.56,3.63817722]
[1753331393173,10.16550642,188.61,188.56,3.63817722]
[1753331393375,0.7,188.6,188.56,3.63817722]
[1753331393878,9.46550642,188.61,188.56,3.63817722]
[1753331394090,26.52523767,188.62,188.57,4.17817722]
[1753331394290,0.7,188.61,188.57,3.63817722]
[1753331394503,0.7,188.61,188.56,5.30331197]
[1753331394674,0.7,188.61,188.55,5.90359101]
[1753331394878,0.7,188.61,188.56,3.63817722]
[1753331395412,30.16341489,188.62,188.57,3.63817722]
[1753331395592,0.7,188.61,188.57,3.63817722]
[1753331398380,4.33817722,188.6,188.55,0.06]
[1753331398574,0.7,188.6,188.55,3.69817722]
[1753331398794,0.7,188.6,188.55,0.06]
[1753331398998,0.7,188.6,188.56,3.63817722]
[1753331400139,0.7,188.6,188.56,8.94149448]
[1753331400308,31.82693308,188.62,188.57,3.63817722]
[1753331400604,0.7,188.61,188.55,3.69817722]
[1753331400808,0.7,188.61,188.55,0.06]
[1753331400809,26.0,188.59,188.55,0.06]
[1753331401112,3.63817722,188.57,188.55,0.06]
[1753331401302,4.16341489,188.57,188.55,0.06]
[1753331401504,0.7,188.56,188.55,0.06]
[1753331402008,0.7,188.6,188.55,3.69817722]
[1753331402313,26.0,188.58,188.55,0.06]
[1753331402493,1.22523767,188.57,188.55,0.06]
[1753331402676,4.86341489,188.57,188.55,0.06]
[1753331402881,0.7,188.56,188.55,0.06]
[1753331403488,4.33817722,188.56,188.55,0.06]
[1753331403887,47.62152893,188.56,188.55,0.06]
[1753331404414,26.0,188.49,188.4,5.30785562]
[1753331404612,26.0,188.49,188.44,3.63817722]
[1753331404911,42.31817722,188.52,188.47,3.63817722]
[1753331405129,0.7,188.51,188.46,3.63817722]
[1753331405419,0.7,188.51,188.47,3.63817722]
[1753331405585,29.63817722,188.53,188.47,0.54]
[1753331405788,0.52523767,188.53,188.48,3.63817722]
[1753331406005,0.52523767,188.53,188.47,5.3058408]
[1753331406208,0.7,188.52,188.51,0.06]
[1753331406987,26.0,188.54,188.51,0.06]
[1753331407183,0.52523767,188.56,188.51,0.06]
[1753331407184,0.7,188.52,188.51,0.06]
[1753331407425,44.68849276,188.52,188.51,0.06]
[1753331407594,38.74,188.52,188.51,0.06]
[1753331407914,49.99296973,188.52,188.51,0.06]
[1753331408110,26.0,188.49,188.39,0.54]
[1753331408308,5.94849276,188.46,188.41,5.94849276]
[1753331408618,1.22523767,188.45,188.41,5.94849276]
[1753331409321,0.7,188.44,188.4,5.94849276]
[1753331409494,0.7,188.44,188.41,5.94849276]
[1753331409808,0.7,188.44,188.43,0.06]
[1753331410190,0.52523767,188.48,188.43,6.60849276]
[1753331410397,38.06,188.5,188.46,5.94849276]
[1753331410597,38.58523767,188.5,188.46,5.94849276]
[1753331410913,0.7,188.49,188.45,5.94849276]
[1753331411225,36.58523767,188.5,188.45,5.3063772]
[1753331411427,36.58523767,188.5,188.46,5.94849276]
[1753331411639,0.52523767,188.5,188.46,5.94849276]
[1753331411820,38.06,188.51,188.47,5.94849276]
[1753331412022,0.52523767,188.52,188.48,5.94849276]
[1753331412333,11.25217995,188.55,188.45,5.3063772]
[1753331412528,38.58523767,188.54,188.48,0.6]
[1753331412917,0.52523767,188.54,188.48,0.6]
[1753331413126,0.52523767,188.57,188.53,11.25262016]
[1753331413414,38.76,188.58,188.55,5.94849276]
[1753331413623,0.52523767,188.57,188.54,5.94849276]
[1753331413797,1.22523767,188.57,188.54,5.94849276]
[1753331414304,38.06,188.58,188.54,5.94849276]
[1753331414601,38.06,188.58,188.57,5.94849276]
[1753331414602,0.52523767,188.58,188.57,5.94849276]
[1753331414801,0.03,188.64,188.57,6.54849276]
[1753331415002,0.03,188.64,188.63,5.94849276]
[1753331415221,0.55523767,188.64,188.61,5.94849276]
[1753331415616,0.55523767,188.64,188.58,5.90276439]
[1753331415813,0.55523767,188.64,188.61,5.94849276]
[1753331416011,0.55523767,188.64,188.62,5.94849276]
[1753331416328,0.03,188.64,188.62,5.94849276]
[1753331416630,0.006,188.64,188.63,5.94849276]
[1753331418325,26.0,188.63,188.53,0.6]
[1753331418532,7.17373043,188.62,188.57,5.94849276]
[1753331418712,0.7,188.61,188.58,5.94849276]
[1753331419316,0.7,188.61,188.52,5.30447697]
[1753331419317,0.52523767,188.62,188.59,5.94849276]
[1753331419517,1.22523767,188.62,188.59,5.94849276]
[1753331419816,0.7,188.61,188.57,5.94849276]
[1753331420436,5.30166472,188.62,188.57,5.94849276]
[1753331420641,0.7,188.61,188.57,5.94849276]
[1753331420825,5.30166472,188.62,188.59,5.94849276]
[1753331422540,5.96166472,188.62,188.58,5.94849276]
[1753331424735,5.96166472,188.62,188.55,0.6]
[1753331424736,0.006,188.64,188.61,5.94849276]